[Event "2nd Serbia Open Masters 2022"]
[Site "Novi Sad"]
[Date "2022.06.29"]
[Round "2.5"]
[White "Utsab Chatterjee"]
[Black "Bernadskiy, Vitaliy"]
[Result "0-1"]
[ECO "C77"]
[WhiteElo "2403"]
[BlackElo "2636"]
[Annotator "TA"]
[PlyCount "80"]
[EventDate "2022.06.28"]
[EventType "swiss"]
[EventCountry "SRB"]
[SourceTitle "playchess.com"]
[Source "ChessBase"]
[SourceQuality "1"]
[TimeControl "40/5400+30:900+30"]

{[%evp 12,80,35,18,12,0,12,10,8,0,0,0,0,0,0,0,0,0,3,-12,-5,-21,0,-13,-7,-2,-1,-20,0,-37,-20,-20,-20,-20,-21,-21,-6,-37,-10,-62,0,-102,-102,-102,-102,-102,-102,-102,-87,-214,-227,-235,-237,-284,-264,-341,-363,-357,-352,-366,-365,-341,-298,-423,-416,-603,-587,-1266,-1208,-1015,-989]} 1. e4 {[%emt 0:00:01] Tiviakov,S} e5 {[%emt 0:11:42]} 2. Nf3 {[%emt 0:00:20]} Nc6 {[%emt 0:00:04]} 3. Bb5 {[%emt 0:00:11]} a6 {[%emt 0:00:05]} 4. Ba4 {[%emt 0:00:07]} Nf6 {[%emt 0:00:06]} 5. d3 {[%emt 0:00:31]} d6 {[%emt 0:00:29]} 6. c3 {[%emt 0:00:27]} g6 {[%emt 0:02:12]} 7. Bg5 {[%emt 0:00:52]} Bg7 {[%emt 0:02:19] 7...h6 is not played anymore. C77: Ruy Lopez: 3...a6 4 Ba4 Nf6, unusual lines.} 8. Nbd2 {[%emt 0:00:26]} h6 {[%emt 0:00:22]} 9. Bh4 {[%emt 0:00:29]} O-O {[%emt 0:03:37] The position is equal.} 10. Nf1 {[%emt 0:04:12]} b5 {[%emt 0:01:33]} 11. Bb3 {[%emt 0:00:27]} Na5 {[%emt 0:05:09]} 12. Bc2 {[%emt 0:00:09]} c5 {[%emt 0:00:04][%cal Bc7c5,Bc5b4][%mdl 32]} 13. Ne3 {[%emt 0:01:04]} Be6 {[%emt 0:00:40] [#]} 14. a3 $146 {[%emt 0:00:17][%cal Ba2a3,Ba3a4,Ba4b5][%mdl 32]} ({Predecessor:} 14. O-O Qd7 15. a3 Ng4 16. Nxg4 Bxg4 17. h3 Be6 18. Re1 f5 19. d4 f4 20. dxe5 {1-0 (39) Tiviakov,S (2648)-Eljanov,P (2701) Montreal 2007 CBM 119 [Tiviakov,S]}) 14... Nc6 {[%emt 0:02:20]} 15. b4 {[%emt 0:06:13]} a5 {[%emt 0:04:46][%cal Ra5b4]} 16. a4 {[%emt 0:10:44]} cxb4 {[%emt 0:01:36]} 17. axb5 {[%emt 0:00:14]} Na7 {[%emt 0:00:03]} 18. c4 {[%emt 0:17:49]} Nc8 {[%emt 0:01:27]} 19. Qd2 {[%emt 0:01:53]} Nb6 {[%emt 0:01:32]} 20. h3 {[%emt 0:04:34]} Qc7 {[%emt 0:11:21]} 21. Bxf6 {[%emt 0:15:20]} Bxf6 {[%emt 0:00:04]} 22. O-O {[%emt 0:00:11]} Bg7 {[%emt 0:03:12]} 23. Rfc1 {[%emt 0:03:02]} Qc5 {[%emt 0:02:37]} 24. Rab1 {[%emt 0:05:17]} f5 {[%emt 0:02:29]} 25. Bd1 {[%emt 0:00:13]} (25. Nh4 $11) 25... f4 {[%emt 0:05:32]} ({Black should play} 25... fxe4 $15 26. dxe4 Bf7) 26. Nf1 {[%emt 0:06:58]} (26. Nd5 $1 $11) 26... Nd7 $17 {[%emt 0:00:46] Black is more active.} 27. Ra1 {[%emt 0:06:18]} Qb6 {[%emt 0:00:27]} 28. Rcb1 {[%emt 0:01:25]} Bf7 {[%emt 0:00:52]} 29. Qe2 {[%emt 0:00:59]} Bf6 {[%emt 0:02:26][%cal Bg7f6,Bf6d8,Bd8g5][%mdl 32]} 30. g4 {[%emt 0:02:57] Now White is beyond hope.} (30. Ra4 $17) 30... fxg3 $1 $19 {[%emt 0:01:48]} 31. Nxg3 {[%emt 0:00:01]} Kh7 {[%emt 0:00:15]} 32. Qe3 {[%emt 0:00:45]} Qb7 {[%emt 0:02:03]} 33. Ra2 {[%emt 0:00:48]} Bd8 {[%emt 0:00:09]} 34. Nh2 {[%emt 0:00:41]} Nc5 {[%emt 0:00:58][%cal Bd7c5,Bc5e6,Be6f4,Bf4h3][%mdl 32]} 35. Ng4 {[%emt 0:03:07]} Bg5 {[%emt 0:00:04]} 36. Qe2 {[%emt 0:00:07]} Ne6 {[%emt 0:00:06]} 37. Rba1 {[%emt 0:01:43]} (37. Qf1 $142) 37... Nf4 {[%emt 0:01:54][%csl LRe2,LRh3]} 38. Qc2 {[%emt 0:02:20]} (38. Qf1 $142 Be6 39. f3 (39. Rxa5 $2 Rxa5 40. Rxa5 h5 $19)) 38... Be6 {[%emt 0:01:37] ...h5 is the strong threat. Black is clearly winning.} 39. Rxa5 {[%emt 0:01:58]} Rxa5 {[%emt 0:00:12]} 40. Rxa5 {[%emt 0:00:00]} Nxh3+ {[%emt 0:00:00] Weighted Error Value: White=0.40/Black=0.08 (flawless)} 0-1

[Event "2nd Serbia Open Masters 2022"]
[Site "Novi Sad"]
[Date "2022.06.29"]
[Round "2.6"]
[White "Adhiban, B.."]
[Black "Moksh Amit Doshi"]
[Result "1-0"]
[ECO "A17"]
[WhiteElo "2616"]
[BlackElo "2398"]
[Annotator "TA"]
[PlyCount "81"]
[EventDate "2022.06.28"]
[EventType "swiss"]
[EventCountry "SRB"]
[SourceTitle "playchess.com"]
[Source "ChessBase"]
[SourceQuality "1"]
[TimeControl "40/5400+30:900+30"]

{[%evp 9,81,0,0,0,0,0,6,0,1,1,0,9,16,0,16,12,14,0,25,23,26,14,37,33,33,37,46,46,54,46,51,31,45,45,62,66,71,74,69,67,97,98,106,106,100,101,93,79,65,71,99,85,82,72,75,75,115,107,100,86,113,113,118,115,133,132,129,141,227,233,275,273,270,259]} 1. Nf3 {[%emt 0:04:00]} d5 {[%emt 0:02:28]} 2. e3 {[%emt 0:00:07]} Nf6 {[%emt 0:01:31]} 3. c4 {[%emt 0:00:11]} e6 {[%emt 0:00:30]} 4. Nc3 {[%emt 0:00:08]} b6 {[%emt 0:03:37]} 5. cxd5 {[%emt 0:00:52]} exd5 {[%emt 0:00:13]} 6. g3 {[%emt 0:00:55] A17: English Opening: 1...Nf6 with ...Bb4.} Bd6 {[%emt 0:04:05]} 7. Bg2 {[%emt 0:00:43]} O-O {[%emt 0:02:43]} 8. O-O {[%emt 0:00:05] The position is equal.} Ba6 {[%emt 0:03:40]} 9. Re1 {[%emt 0:07:02]} Re8 {[%emt 0:02:21] [#]} 10. d4 $146 {[%emt 0:07:49][%cal Oe3e4]} ({Predecessor:} 10. d3 Nbd7 11. Nd4 c5 12. Ndb5 Ne5 13. d4 Nc6 14. Nxd6 Qxd6 15. dxc5 Qxc5 16. Nxd5 Nxd5 17. Qxd5 Qxd5 18. Bxd5 {1-0 (72) Keymer,V (2591)-Pichot,A (2630) Biel 2021}) 10... Nbd7 {[%emt 0:00:34][%cal Bb8d7,Bd7c5,Bc5e4][%mdl 32]} 11. b3 {[%emt 0:01:10]} Bb4 {[%emt 0:06:11]} 12. Bb2 {[%emt 0:02:53]} Ne4 {[%emt 0:03:17]} 13. Rc1 {[%emt 0:00:13]} c5 {[%emt 0:05:10]} 14. dxc5 {[%emt 0:19:05]} Ndxc5 {[%emt 0:01:04] [#] And now ...Nd3 would win.} 15. Bf1 {[%emt 0:01:45] Against Nd3} Bxf1 {[%emt 0:07:40]} (15... Rc8 {is more complex.} 16. Bxa6 Nxa6 17. Qd4 Bxc3 18. Bxc3 f6) 16. Rxf1 {[%emt 0:00:22]} Bxc3 {[%emt 0:00:40]} 17. Bxc3 {[%emt 0:00:04]} Nxc3 {[%emt 0:08:11]} 18. Rxc3 {[%emt 0:00:09]} Ne4 {[%emt 0:04:46]} 19. Rc2 {[%emt 0:00:55]} Qd7 {[%emt 0:05:02]} 20. Qe2 {[%emt 0:04:57]} Rac8 {[%emt 0:03:35]} 21. Rfc1 {[%emt 0:00:25][%cal Bf1c1,Bc1c2,Bc2c8][%mdl 32]} Nd6 {[%emt 0:04:59]} 22. Qd3 {[%emt 0:05:21]} Rxc2 {[%emt 0:01:08]} 23. Rxc2 {[%emt 0:00:04]} Ne4 {[%emt 0:01:29]} 24. Nd4 {[%emt 0:00:33]} h5 {[%emt 0:02:57] [#]} 25. Qb5 $1 {[%emt 0:01:31]} Rd8 {[%emt 0:01:59]} 26. Qxd7 {[%emt 0:02:03]} Rxd7 $16 {[%emt 0:00:09][%mdl 4096] Endgame KRN-KRN} 27. Rc8+ {[%emt 0:02:48]} Kh7 {[%emt 0:00:06]} 28. Kf1 {[%emt 0:00:43]} Nd6 {[%emt 0:01:23]} 29. Ra8 {[%emt 0:03:49] White is more active.} g6 {[%emt 0:02:10]} 30. f3 {[%emt 0:10:30]} Kg7 {[%emt 0:01:31]} 31. Ke2 {[%emt 0:02:08]} Kf6 {[%emt 0:01:41]} 32. Kd3 {[%emt 0:00:40]} Nb7 {[%emt 0:10:13]} 33. Nb5 {[%emt 0:06:24]} a6 {[%emt 0:00:59]} 34. Nd4 {[%emt 0:00:08]} Nc5+ {[%emt 0:01:46]} 35. Kd2 {[%emt 0:02:20]} a5 {[%emt 0:00:08]} 36. Nb5 {[%emt 0:06:25]} Ke7 {[%emt 0:02:53]} 37. Kc3 {[%emt 0:00:54]} Rb7 {[%emt 0:02:45]} 38. Kd4 {[%emt 0:03:09]} Ke6 {[%emt 0:00:49]} (38... Rd7 $16 {was worth a try.}) 39. h4 $18 {[%emt 0:06:40]} Rd7 {[%emt 0:01:13]} 40. Rb8 {[%emt 0:00:00]} Nb7 {[%emt 0:00:00]} 41. Nc3 {[%emt 0:04:29] Weighted Error Value: White=0.03 (flawless) /Black=0.11 (very precise)} 1-0

[Event "2nd Serbia Open Masters 2022"]
[Site "Novi Sad"]
[Date "2022.06.29"]
[Round "2.7"]
[White "Muthaiah AL"]
[Black "Aryan Chopra"]
[Result "1/2-1/2"]
[ECO "A62"]
[WhiteElo "2401"]
[BlackElo "2609"]
[Annotator "TA"]
[PlyCount "87"]
[EventDate "2022.06.28"]
[EventType "swiss"]
[EventCountry "SRB"]
[SourceTitle "playchess.com"]
[Source "ChessBase"]
[SourceQuality "1"]
[TimeControl "40/5400+30:900+30"]

{[%evp 18,87,27,22,7,13,16,7,25,23,37,9,30,-3,0,0,12,8,21,0,-3,0,-4,0,0,0,0,0,0,-47,-19,-25,-27,-26,-33,-19,-25,-46,-40,-39,-36,-27,24,22,33,0,0,0,137,0,0,0,0,0,0,0,0,0,0,0,0,0,0,-6,-6,-6,0,0,0,0,0,-6103]} 1. d4 {[%emt 0:01:06] Hillarp Persson,T} Nf6 {[%emt 0:00:06]} 2. c4 {[%emt 0:00:28]} g6 {[%emt 0:00:09]} 3. g3 {[%emt 0:00:35]} Bg7 {[%emt 0:00:12]} 4. Bg2 {[%emt 0:00:24]} O-O {[%emt 0:00:08]} 5. Nc3 {[%emt 0:00:20]} d6 {[%emt 0:00:09]} 6. Nf3 {[%emt 0:00:46]} c5 {[%emt 0:00:31]} 7. d5 {[%emt 0:01:30]} e6 {[%emt 0:00:10]} 8. O-O {[%emt 0:01:00]} exd5 {[%emt 0:00:16]} 9. cxd5 {[%emt 0:00:25]} Re8 {[%emt 0:00:08]} 10. Bf4 {[%emt 0:02:16]} Bf5 $1 {[%emt 0:00:44][%mdl 4] is currently scoring better than 10...a6. A62: Modern Benoni: Fianchetto Variation without early ...Nbd7.} 11. Nh4 {[%emt 0:02:47]} Bc8 {[%emt 0:00:22]} 12. Qd2 {[%emt 0:02:38] [#]} Bf8 $146 {[%emt 0:01:07]} ({Predecessor:} 12... a6 13. a4 Qe7 14. h3 Nbd7 15. e4 Rb8 16. Nf3 b5 17. axb5 axb5 18. Rfe1 b4 {½-½ (47) Inarkiev,E (2727)-Harikrishna,P (2750) Moscow 2017 CBM 179 [Hillarp Persson,T]}) 13. Rfe1 {[%emt 0:07:35]} a6 {[%emt 0:00:45]} 14. e4 {[%emt 0:07:28]} Nbd7 {[%emt 0:16:32]} 15. Nf3 {[%emt 0:05:27]} (15. a4 {with more complications.} Ng4 16. Bf3 Nde5 17. Be2) 15... Ng4 {[%emt 0:01:58] Against e5} 16. a4 {[%emt 0:06:34]} Rb8 {[%emt 0:01:50]} 17. Rab1 {[%emt 0:11:51]} Qa5 {[%emt 0:05:12]} 18. h3 {[%emt 0:09:29]} Nge5 {[%emt 0:00:08]} 19. Nxe5 {[%emt 0:00:24]} Nxe5 {[%emt 0:00:19]} 20. Bxe5 {[%emt 0:00:42]} dxe5 {[%emt 0:03:48]} 21. b3 {[%emt 0:06:18]} b5 {[%emt 0:07:18]} 22. axb5 {[%emt 0:04:24]} axb5 {[%emt 0:00:06]} 23. b4 {[%emt 0:00:16]} (23. Bf1 $11) 23... cxb4 {[%emt 0:01:01]} 24. Na2 {[%emt 0:00:11]} Bd7 {[%emt 0:04:28]} 25. Nxb4 {[%emt 0:00:13]} Rec8 {[%emt 0:09:43] And now ...Rc4 would win.} 26. Bf1 {[%emt 0:01:30] Inhibits Rc4.} Bc5 {[%emt 0:03:01]} 27. Rec1 {[%emt 0:05:50]} Kg7 {[%emt 0:09:02] [#] aiming for ...Bxb4.} (27... Bd4 $5 {[%cal Rf7f5]}) 28. Rxc5 {[%emt 0:15:15]} Rxc5 {[%emt 0:00:05]} 29. Qb2 $1 {[%emt 0:00:13]} Rbc8 {[%emt 0:27:23]} (29... Re8 $142) 30. Qxe5+ $11 {[%emt 0:00:56]} Kg8 {[%emt 0:00:04]} 31. Qb2 {[%emt 0:03:21]} Qb6 {[%emt 0:06:17]} 32. Qd4 {[%emt 0:02:27]} Bxh3 {[%emt 0:01:12] [#]} 33. Nd3 {[%emt 0:00:23]} ({White must play} 33. d6 $1 $16 {Black must now prevent Nd5.} Bxf1 34. Rxf1 (34. Nd5 Qxd6 35. Nf6+ Qxf6 $11)) 33... Bxf1 {[%emt 0:00:12] The position is equal.} 34. Nxc5 {[%emt 0:00:10]} Qxc5 {[%emt 0:02:10]} 35. Qxc5 {[%emt 0:00:08]} Rxc5 {[%emt 0:00:01]} 36. Kxf1 {[%emt 0:00:16][%mdl 4096] Endgame KR-KR} f5 {[%emt 0:00:10]} 37. Rd1 {[%emt 0:02:37] Hoping for e5.} fxe4 {[%emt 0:00:19]} 38. d6 {[%emt 0:00:01] Threatening mate with d7.} Rc8 {[%emt 0:00:02]} 39. d7 {[%emt 0:01:09]} Rd8 {[%emt 0:00:00]} 40. Ke2 {[%emt 0:00:00]} Kf7 {[%emt 0:00:00]} 41. Ke3 {[%emt 0:02:30]} Ke7 {[%emt 0:03:06]} 42. Rd5 {[%emt 0:01:04]} Rb8 {[%emt 0:00:09]} 43. d8=Q+ {[%emt 0:00:16]} Rxd8 {[%emt 0:00:06]} 44. Kxe4 $2 {[%emt 0:14:17][%mdl 40960] Weighted Error Value: White=0.12 (very precise) /Black=0.15 (very precise) . An unexpected result.} (44. Rxb5 $11 Kf6 45. Rb7) 1/2-1/2

[Event "2nd Serbia Open Masters 2022"]
[Site "Novi Sad"]
[Date "2022.06.29"]
[Round "2.8"]
[White "Puranik, Abhimanyu"]
[Black "Drnovsek, Gal"]
[Result "1-0"]
[ECO "B95"]
[WhiteElo "2608"]
[BlackElo "2398"]
[Annotator "TA"]
[PlyCount "53"]
[EventDate "2022.06.28"]
[EventType "swiss"]
[EventCountry "SRB"]
[SourceTitle "playchess.com"]
[Source "ChessBase"]
[SourceQuality "1"]
[TimeControl "40/5400+30:900+30"]

{[%evp 15,53,5,11,16,19,27,26,16,49,37,40,43,75,70,114,70,106,91,81,90,99,91,137,120,516,525,591,579,587,571,599,588,538,540,1364,1359,29983,29984,29984,12170]} 1. e4 {[%emt 0:00:02]} c5 {[%emt 0:03:12]} 2. Nf3 {[%emt 0:00:15]} d6 {[%emt 0:00:16]} 3. d4 {[%emt 0:00:14]} cxd4 {[%emt 0:00:08]} 4. Nxd4 {[%emt 0:00:03]} Nf6 {[%emt 0:00:10]} 5. Nc3 {[%emt 0:00:03]} a6 {[%emt 0:00:05]} 6. Bg5 {[%emt 0:00:45]} e6 {[%emt 0:00:18]} 7. Qf3 {[%emt 0:00:46]} Be7 {[%emt 0:02:21]} 8. O-O-O {[%emt 0:00:44]} Qc7 {[%emt 0:01:27]} 9. Kb1 {[%emt 0:07:43] B95: Sicilian Najdorf: 6 Bg5 e6, unusual White 7th moves.} Nc6 {[%emt 0:05:29]} 10. Nxc6 {[%emt 0:03:21]} bxc6 {[%emt 0:02:49] [#]} 11. Qg3 $146 {[%emt 0:07:26] White has an edge.} ({Predecessor:} 11. Bc4 Rb8 12. Bb3 O-O 13. h4 Qa5 14. e5 Qxe5 15. Rhe1 Qa5 16. Ne4 Nxe4 17. Bxe7 Qxe1 {0-1 (30) Alvarez Soto,A-Torrado Quintela,J (2129) Santiago de Compostela 2003}) 11... e5 {[%emt 0:04:25]} 12. Be2 {[%emt 0:08:50]} O-O {[%emt 0:08:49]} 13. f4 {[%emt 0:01:07][%cal Bf2f4,Bf4f5][%mdl 32]} Ne8 {[%emt 0:10:56]} 14. f5 {[%emt 0:06:04]} Bb7 {[%emt 0:03:50]} 15. Bc4 {[%emt 0:01:34]} Rd8 {[%emt 0:02:07]} 16. Rd3 {[%emt 0:02:58] 0x0.002229fb0e48dp-1022s more active pieces.} Bxg5 {[%emt 0:09:37]} 17. Qxg5 {[%emt 0:00:05]} h6 {[%emt 0:00:10]} 18. Qh4 {[%emt 0:08:07]} Nf6 {[%emt 0:03:36] [#]} (18... d5 $142) 19. g4 $1 $16 {[%emt 0:03:50]} Qe7 $2 {[%emt 0:15:59][%mdl 8192]} (19... Nh7 $16) 20. g5 $18 {[%emt 0:03:22]} hxg5 {[%emt 0:00:07]} 21. Qxg5 {[%emt 0:00:04]} Nd5 {[%emt 0:07:48]} 22. h4 {[%emt 0:12:35][%cal Rc3d5]} Nxc3+ {[%emt 0:05:22]} 23. Rxc3 {[%emt 0:01:11]} ({Not} 23. bxc3 Qf6 $16) 23... Qf6 {[%emt 0:00:53]} 24. Rg3 {[%emt 0:00:38] [#] White wants to mate with Qxf6.} Kh7 {[%emt 0:00:31]} 25. Rhg1 {[%emt 0:01:05] Threatening mate with Qh5+.} Rg8 {[%emt 0:00:31]} 26. Qh5+ {[%emt 0:00:24]} Qh6 {[%emt 0:00:06]} 27. Qxf7 {[%emt 0:00:10] Black got outplayed after the opening.  Weighted Error Value: White=0.05 (flawless) /Black=0.77} 1-0

[Event "2nd Serbia Open Masters 2022"]
[Site "Novi Sad"]
[Date "2022.06.29"]
[Round "2.9"]
[White "Tania, Sachdev"]
[Black "Can, Emre"]
[Result "0-1"]
[ECO "D44"]
[WhiteElo "2399"]
[BlackElo "2599"]
[Annotator "TA"]
[PlyCount "58"]
[EventDate "2022.06.28"]
[EventType "swiss"]
[EventCountry "SRB"]
[SourceTitle "playchess.com"]
[Source "ChessBase"]
[SourceQuality "1"]
[TimeControl "40/5400+30:900+30"]

{[%evp 11,58,0,18,16,31,24,18,0,0,0,0,0,0,0,0,0,0,0,0,0,25,25,24,0,0,0,5,5,14,0,4,0,11,0,0,0,0,-67,-37,-107,-100,-105,-102,-568,-576,-560,-555,-540,-524]} 1. d4 {[%emt 0:00:15]} d5 {[%emt 0:00:26]} 2. c4 {[%emt 0:00:07]} e6 {[%emt 0:00:27]} 3. Nf3 {[%emt 0:00:06]} Nf6 {[%emt 0:00:13]} 4. Nc3 {[%emt 0:00:04]} c6 {[%emt 0:00:20]} 5. Bg5 {[%emt 0:00:50]} dxc4 {[%emt 0:00:31]} 6. a4 {[%emt 0:00:26]} b5 $1 {[%emt 0:01:30][%mdl 4] outshines the older 6...Bb4.} 7. axb5 {[%emt 0:01:20] D44: Semi-Slav: Botvinnik System.} cxb5 {[%emt 0:00:08]} 8. Nxb5 {[%emt 0:14:31] White wants to play e4.} Qb6 $1 {[%emt 0:00:23]} 9. Nc3 {[%emt 0:06:30] The position is equal.} ({Don't blunder} 9. Qa4 $2 Bd7 10. Qxc4 (10. Bxf6 $2 Bxb5 11. Qc2 Bb4+ 12. Kd1 gxf6 $19) 10... Qxb5 $19) 9... Qxb2 {[%emt 0:00:39] Strongly threatening ...Bb4.} 10. Bd2 {[%emt 0:00:03]} Nd5 {[%emt 0:00:19]} 11. Rc1 {[%emt 0:14:55]} Nd7 {[%emt 0:12:50] [#]} 12. e4 $146 {[%emt 0:02:55]} ({Predecessor:} 12. Na4 Qb3 13. e3 N7b6 14. Qxb3 cxb3 15. Ne5 f6 16. Bb5+ Ke7 17. Nd3 Bd7 18. Bxd7 Nxd7 19. e4 N5b6 20. Nac5 a5 {½-½ (20) Baroin,B (2183)-Kain,T (2435) ICCF email 2014}) 12... Nxc3 {[%emt 0:01:57]} 13. Bxc3 {[%emt 0:01:23]} ({Reject} 13. Rxc3 Nb6 $15) 13... Bb4 {[%emt 0:02:21]} 14. Bxb4 {[%emt 0:03:41]} Qxb4+ {[%emt 0:00:42]} 15. Qd2 {[%emt 0:00:29]} Rb8 {[%emt 0:17:26]} 16. Bxc4 {[%emt 0:02:59]} O-O {[%emt 0:03:00]} 17. O-O {[%emt 0:02:05]} Qxd2 {[%emt 0:02:28]} 18. Nxd2 {[%emt 0:00:04]} Rb2 {[%emt 0:09:50]} 19. Rfd1 {[%emt 0:15:35]} Nb6 {[%emt 0:02:47]} 20. Bd3 {[%emt 0:02:06]} Rd8 {[%emt 0:06:05]} 21. Nc4 {[%emt 0:07:21]} Rb4 {[%emt 0:06:46]} 22. Na5 {[%emt 0:07:10] aiming for Nc6.} Bd7 {[%emt 0:00:13]} 23. d5 {[%emt 0:01:11]} Kf8 {[%emt 0:15:39]} 24. Rc7 {[%emt 0:11:57]} (24. Nb7 $11 Rc8 25. Nc5) 24... exd5 {[%emt 0:03:10] Hoping for ...Ba4.} (24... Ba4 $5 {[%cal Ra4d1]} 25. Rf1 exd5 $15) 25. exd5 {[%emt 0:01:19]} (25. f3 $15) 25... Ba4 {[%emt 0:02:08]} 26. Re1 {[%emt 0:00:46]} Rxd5 {[%emt 0:01:30]} 27. Nc4 {[%emt 0:01:50][%mdl 8192]} Rxd3 $19 {[%emt 0:03:59] Black is clearly winning.} 28. Nxb6 {[%emt 0:00:15] [#] Intending Rc8+ and mate.} Re4 $3 {[%emt 0:00:37][%cal Re4e1][%mdl 512]} 29. Rc8+ {[%emt 0:01:03]} (29. Ra1 axb6) 29... Be8 {[%emt 0:00:08] Weighted Error Value: White=0.37/Black=0.05 (flawless)} 0-1

[Event "2nd Serbia Open Masters 2022"]
[Site "Novi Sad"]
[Date "2022.06.29"]
[Round "2.10"]
[White "Sanal, Vahap"]
[Black "Ostovic, Matija"]
[Result "1-0"]
[ECO "B07"]
[WhiteElo "2575"]
[BlackElo "2391"]
[Annotator "TA"]
[PlyCount "91"]
[EventDate "2022.06.28"]
[EventType "swiss"]
[EventCountry "SRB"]
[SourceTitle "playchess.com"]
[Source "ChessBase"]
[SourceQuality "1"]
[TimeControl "40/5400+30:900+30"]

{[%evp 10,91,43,38,46,26,39,44,43,52,60,37,55,19,21,19,19,25,30,15,20,24,23,10,10,0,0,0,0,8,8,-10,0,-31,-5,-28,0,-29,0,-29,-34,-36,53,57,67,79,79,79,79,66,66,70,61,21,147,0,0,-21,-5,-13,-5,-80,91,101,155,155,314,316,320,327,342,352,547,546,566,547,1056,1060,1236,1236,2514,2366,1579,1360]} 1. e4 {[%emt 0:00:25]} d6 {[%emt 0:01:53][%cal Bd7d6,Bd6e5][%mdl 32]} 2. d4 {[%emt 0:00:25]} Nf6 {[%emt 0:00:14]} 3. Nc3 {[%emt 0:00:44]} e5 {[%emt 0:00:11]} 4. dxe5 {[%emt 0:00:09]} dxe5 {[%emt 0:00:12]} 5. Qxd8+ {[%emt 0:00:08]} Kxd8 {[%emt 0:00:05]} 6. Bc4 {[%emt 0:00:08]} Ke8 {[%emt 0:00:28] is recently more successful than 6...Be6. B07: Pirc Defence: Miscellaneous Systems.} 7. f4 {[%emt 0:00:15]} Bb4 {[%emt 0:01:46]} 8. Bd3 {[%emt 0:00:27] [#]} exf4 $146 {[%emt 0:10:24] White is slightly better.} ({Predecessor:} 8... Nc6 9. Nf3 Bg4 10. fxe5 Bxc3+ 11. bxc3 Nd7 12. Bf4 Bxf3 13. gxf3 Ndxe5 14. Be2 Ke7 {1-0 (53) Sarana,A (2685)-Ibarra Jerez,J (2570) Chess.com INT 2022}) 9. Bxf4 {[%emt 0:00:29]} c6 {[%emt 0:00:19]} 10. Nge2 {[%emt 0:01:26][%cal Bg1e2,Be2d4,Bd4f5][%mdl 32]} Be6 {[%emt 0:01:25]} 11. Nd4 {[%emt 0:02:01]} Nbd7 {[%emt 0:03:22]} 12. a3 {[%emt 0:00:46]} Bc5 {[%emt 0:04:43]} 13. Nf5 {[%emt 0:04:31]} Nh5 {[%emt 0:08:31]} 14. Bd2 {[%emt 0:02:18]} g6 {[%emt 0:06:13]} 15. Be2 {[%emt 0:07:32][%cal Oh1f1]} Nhf6 {[%emt 0:09:06]} 16. Ng7+ {[%emt 0:00:34]} Ke7 {[%emt 0:00:14]} 17. Rf1 {[%emt 0:02:46][%cal Oe4e5]} Bd6 {[%emt 0:08:15]} 18. Nxe6 {[%emt 0:00:37]} fxe6 {[%emt 0:06:13]} 19. O-O-O {[%emt 0:01:19] White wants to play Bg5.} h6 {[%emt 0:00:40] Prevents Bg5.} 20. Be1 {[%emt 0:08:43][%cal Od1d6] Hoping for Rxd6!} Be5 {[%emt 0:02:47]} 21. Na4 {[%emt 0:03:35]} a5 {[%emt 0:03:35]} 22. c4 {[%emt 0:16:44]} g5 {[%emt 0:09:13]} 23. g3 {[%emt 0:03:05]} Nxe4 {[%emt 0:01:10]} 24. Rxd7+ {[%emt 0:04:37]} Kxd7 {[%emt 0:00:17]} 25. Rf7+ {[%emt 0:00:34]} Kd8 {[%emt 0:07:19]} ({Black should play} 25... Kd6 $15) 26. Nb6 $1 $14 {[%emt 0:01:11][%mdl 1024] White has compensation.} Ra6 {[%emt 0:02:46]} 27. Rd7+ {[%emt 0:02:11]} Ke8 {[%emt 0:00:07]} 28. Bh5+ {[%emt 0:00:19]} Kf8 {[%emt 0:00:12]} 29. Rf7+ {[%emt 0:09:25]} Kg8 {[%emt 0:00:45]} 30. Nc8 $40 {[%emt 0:09:54][%cal Rc8e7][%mdl 128] White is up to no good.} Bf6 {[%emt 0:00:52] White must now prevent ...Rh7.} 31. Bg6 {[%emt 0:01:34] Inhibits Rh7. Ne7+ is the strong threat. This bishop pair is nice.} Ra8 {[%emt 0:05:39]} (31... h5 $11 32. Ne7+ Bxe7 33. Rxe7 Nf6) 32. Nb6 {[%emt 0:01:34] White is more active.} ({Stronger than} 32. Rxb7 Nc5 33. Rc7 Be5 34. Rxc6 Nb3+ 35. Kb1 Kg7 $17) ({White has to play} 32. Ne7+ $1 $16 Bxe7 33. Rxe7) 32... Rd8 $1 $11 {[%emt 0:01:19][%cal Oh6h5]} 33. Bxa5 {[%emt 0:00:14] [#]} Nc5 $1 {[%emt 0:04:40] Inhibits Nd7. And now ...Rf8 would win.} 34. Rxf6 {[%emt 0:03:11]} Nb3+ {[%emt 0:00:12]} 35. Kc2 {[%emt 0:00:07] [#]} (35. Kb1 $11 {remains equal.} Nxa5 36. Rxe6) 35... Nxa5 $2 {[%emt 0:00:06] [#]} (35... Nd4+ $1 $17 {keeps the pressure on.} 36. Kc3 Kg7 37. Rf7+ (37. Nd5 Rxd5 38. cxd5 Nb5+ 39. Kd2 Kxf6 $17) 37... Kxg6 38. Rxb7 Nf3) 36. b4 $1 $16 {[%emt 0:01:49][%cal Bb2b4,Bb4a5][%mdl 32]} Kg7 {[%emt 0:01:56]} (36... Rf8 $142 37. Rxf8+ (37. Rxe6 Rf2+ 38. Kc3 Rf3+ 39. Kc2 Rf2+ 40. Kc3 Rf3+ 41. Kb2 Rf2+ 42. Kc3 $14) 37... Kxf8) 37. Rxe6 {[%emt 0:00:04]} Rhf8 $2 {[%emt 0:00:56] This move loses the game for Black.} (37... Rdf8 $16) 38. bxa5 $18 {[%emt 0:01:31]} Rf2+ {[%emt 0:00:40]} 39. Kb3 {[%emt 0:00:40]} Rxh2 {[%emt 0:00:37]} 40. g4 {[%emt 0:00:00]} Rh3+ {[%emt 0:00:00]} (40... Rd4 {keeps fighting.} 41. Bf5 h5 42. Rg6+ Kf7 43. gxh5 Rxh5) 41. Kb4 {[%emt 0:01:13] White is clearly winning.} Rd2 {[%emt 0:15:59]} 42. a4 {[%emt 0:00:17]} Rg2 {[%emt 0:00:18]} 43. Bh5 {[%emt 0:00:48]} Rb2+ {[%emt 0:00:49]} 44. Kc5 {[%emt 0:00:03] Threatens to win with Re7+.} Rd3 {[%emt 0:00:29]} 45. Re7+ {[%emt 0:00:31]} Kf6 {[%emt 0:00:25]} 46. Rxb7 {[%emt 0:00:13] Weighted Error Value: White=0.16 (very precise) /Black=0.35} 1-0